fUST/lending_fUST_20251012
["ID","MTS","AMOUNT","RATE_DAILY","PERIOD"]
[390983951,1760266639887,502.03276905,0.00030267,60]
[390983952,1760266641078,500.0,0.00030267,60]
[390983953,1760266641304,500.0,0.00030267,60]
[390983954,1760266641552,372.67203152,0.00030267,60]
[390983955,1760266643342,477.43338307,0.00030267,60]
[390983956,1760266643443,500.0,0.00030267,60]
[390983957,1760266643673,500.0,0.00030267,60]
[390983958,1760266647002,500.0,0.00030267,60]
[390983959,1760266647035,500.0,0.00030267,60]
[390983960,1760266647267,500.0,0.00030267,60]
[390983961,1760266647295,500.0,0.00030267,60]
[390983962,1760266647516,504.14856226,0.00030267,60]
[390983963,1760266650775,500.0,0.00030267,60]
[390983964,1760266659683,500.0,0.00030267,60]
[390983965,1760266660054,500.0,0.00030267,60]
[390983966,1760266665053,231.06111157,0.00030267,60]
[390983967,1760266665215,650.1790867,0.0002178,2]
[390983968,1760266665236,3966.8209133,0.0002178,2]
[390983969,1760266669408,500.0,0.00030267,60]
[390983970,1760266669635,500.0,0.00030267,60]
[390983971,1760266669872,4617.0,0.00021602,2]
[390983972,1760266672127,500.0,0.00030267,60]
[390983973,1760266672578,500.0,0.00030267,60]
[390983974,1760266681133,150.0,0.00017992,2]
[390983975,1760266681457,150.0,0.00018849,2]
[390983976,1760266681889,150.0,0.00019706,2]
[390983977,1760266682367,150.0,0.00020562,2]
[390983978,1760266682841,150.0,0.00021419,2]
[390983979,1760266689370,481.50162369,0.00030268,60]
[390983980,1760266690562,500.0,0.00030268,60]
[390983981,1760266691391,502.14122017,0.00030268,60]
[390983982,1760266691442,624.14372896,0.00021799,2]
[390983983,1760266694027,509.08,0.00030268,60]
[390983984,1760266697376,500.0,0.00030268,60]
[390983985,1760266699373,500.0,0.00030268,60]
[390983986,1760266700980,500.0,0.00030268,60]
[390983987,1760266701058,500.0,0.00030268,60]
[390983988,1760266701205,500.0,0.00030268,60]
[390983989,1760266702900,500.0,0.00030268,60]
[390983990,1760266704633,500.0,0.00030268,60]
[390983991,1760266705031,500.0,0.00030268,60]
[390983992,1760266705268,501.13006153,0.00030268,60]
[390983993,1760266708846,500.0,0.00030268,60]
[390983994,1760266709062,500.0,0.00030268,60]
[390983995,1760266710964,500.35610864,0.00030268,60]
[390983996,1760266718858,500.0,0.00030268,60]
[390983997,1760266719144,500.0,0.00030268,60]
[390983998,1760266719684,500.0,0.00030268,60]
[390983999,1760266719922,500.0,0.00030268,60]
[390984000,1760266720191,500.0,0.00030268,60]
[390984001,1760266728607,500.0,0.00030268,60]
[390984002,1760266729989,500.0,0.00030268,60]
[390984003,1760266738145,500.0,0.00030268,60]
[390984004,1760266738379,500.0,0.00030268,60]
[390984005,1760266738609,500.0,0.00030268,60]
[390984006,1760266738864,500.0,0.00030268,60]
[390984007,1760266744074,500.0,0.00030268,60]
[390984008,1760266744338,500.0,0.00030268,60]
[390984009,1760266744865,500.0,0.00030268,60]
[390984010,1760266746183,500.0,0.00030268,60]
[390984011,1760266746405,500.0,0.00030268,60]
[390984012,1760266746622,500.0,0.00030268,60]
[390984013,1760266748594,150.0,0.00017986,2]
[390984014,1760266748998,150.0,0.00018843,2]
[390984015,1760266749426,150.0,0.00019699,2]
[390984016,1760266754218,500.0,0.00030268,60]
[390984017,1760266754457,500.0,0.00030268,60]
[390984018,1760266757143,500.0,0.00030268,60]
[390984019,1760266757374,500.0,0.00030268,60]
[390984020,1760266758330,500.0,0.00030268,60]
[390984021,1760266758595,228.67,0.00030268,60]
[390984022,1760266760019,500.0,0.00030268,60]
[390984023,1760266761761,500.0,0.00030268,60]
[390984024,1760266762007,624.41840311,0.00030268,60]
[390984025,1760266768760,618.67033918,0.00030268,60]
[390984026,1760266776311,500.0,0.00030268,60]
[390984027,1760266785541,500.0,0.00030268,60]
[390984028,1760266785763,500.0,0.00030268,60]
[390984029,1760266795420,156.61624099,0.00030268,60]
[390984030,1760266797564,400.70769647,0.00030268,60]
[390984031,1760266798586,500.0,0.00030268,60]
[390984032,1760266798836,500.0,0.00030268,60]
[390984033,1760266799067,371.6,0.00030268,60]
[390984034,1760266808462,500.0,0.00030268,60]
[390984035,1760266808493,500.0,0.00030268,60]
[390984036,1760266814134,500.0,0.00030268,60]
[390984037,1760266814382,504.20855328,0.00030268,60]
[390984038,1760266818020,500.0,0.00030268,60]
[390984039,1760266818239,362.06070745,0.00030268,60]
[390984040,1760266819809,500.0,0.00030268,60]
[390984041,1760266821596,500.0,0.00030268,60]
[390984042,1760266821836,500.0,0.00030268,60]
[390984043,1760266822086,500.0,0.00030268,60]
[390984044,1760266822313,500.0,0.00030268,60]
[390984045,1760266822529,500.0,0.00030268,60]
[390984046,1760266822593,500.0,0.00030268,60]
[390984047,1760266822772,500.0,0.00030268,60]
[390984048,1760266823000,551.69227696,0.00030268,60]
[390984049,1760266829216,500.0,0.00030268,60]
[390984050,1760266829475,500.0,0.00030268,60]
[390984051,1760266829709,500.0,0.00030268,60]
[390984052,1760266829995,500.0,0.00030268,60]
[390984053,1760266830206,500.0,0.00030268,60]
[390984054,1760266830238,500.0,0.00030268,60]
[390984055,1760266830426,500.0,0.00030268,60]
[390984056,1760266834806,504.34810435,0.00030268,60]
[390984057,1760266835108,500.917739,0.00013699,2]
[390984058,1760266835301,500.917739,0.00020187,2]
[390984059,1760266837078,500.0,0.00030268,60]
[390984060,1760266844453,500.0,0.00021799,2]
[390984061,1760266858536,500.0,0.00030268,60]
[390984062,1760266858771,500.0,0.00030268,60]
[390984063,1760266859888,500.0,0.00030268,60]
[390984064,1760266860550,500.0,0.00030268,60]
[390984065,1760266860820,500.0,0.00030268,60]
[390984066,1760266861060,500.0,0.00030268,60]
[390984067,1760266863606,500.0,0.00030268,60]
[390984068,1760266863860,500.0,0.00030268,60]
[390984069,1760266864111,500.0,0.00030268,60]
[390984070,1760266864358,500.0,0.00030268,60]
[390984071,1760266864630,507.05,0.00030268,60]
[390984072,1760266865008,500.0,0.00030268,60]
[390984073,1760266866450,500.0,0.00030268,60]
[390984074,1760266867493,525.95554354,0.00030268,60]
[390984075,1760266871318,500.0,0.00030268,60]
[390984076,1760266871540,500.0,0.00030268,60]
[390984077,1760266871767,476.92321541,0.00030268,60]
[390984078,1760266872475,500.0,0.00030268,60]
[390984079,1760266872703,500.0,0.00030268,60]
[390984080,1760266875667,500.0,0.00030268,60]
[390984081,1760266875889,307.32,0.00030268,60]
[390984082,1760266878501,501.46835339,0.00030268,60]
[390984083,1760266879878,500.0,0.00030268,60]
[390984084,1760266880109,500.0,0.00030268,60]
[390984085,1760266880367,500.0,0.00030268,60]
[390984086,1760266880613,500.0,0.00030268,60]
[390984087,1760266880851,500.0,0.00030268,60]
[390984088,1760266881108,500.0,0.00030268,60]
[390984089,1760266884490,500.0,0.00030268,60]
[390984090,1760266884817,500.0,0.00030268,60]
[390984091,1760266885055,500.0,0.00030268,60]
[390984092,1760266885284,628.97,0.00030268,60]
[390984093,1760266888094,500.0,0.00030268,60]
[390984094,1760266888655,500.0,0.00030268,60]
[390984095,1760266888686,500.0,0.00030268,60]
[390984096,1760266893445,500.0,0.00030268,60]
[390984097,1760266893768,500.0,0.00030268,60]
[390984098,1760266893946,170.11712614,0.00030268,60]
[390984099,1760266900479,500.0,0.00030268,60]
[390984100,1760266900725,500.0,0.00030268,60]
[390984101,1760266900759,500.0,0.00030268,60]
[390984102,1760266900976,505.03,0.00030268,60]
[390984103,1760266906048,500.0,0.00030268,60]
[390984104,1760266906284,500.0,0.00030268,60]
[390984105,1760266907720,500.0,0.00030268,60]
[390984106,1760266908415,500.0,0.00030268,60]
[390984107,1760266908659,500.0,0.00030268,60]
[390984108,1760266908769,500.0,0.00030268,60]
[390984109,1760266908996,500.0,0.00030268,60]
[390984110,1760266909233,500.0,0.00030268,60]
[390984111,1760266910567,375.81580885,0.00030268,60]
[390984112,1760266915547,500.0,0.00030268,60]
[390984113,1760266915784,500.0,0.00030268,60]
[390984114,1760266916000,504.23087452,0.00030268,60]
[390984115,1760266916032,500.0,0.00030268,60]
[390984116,1760266916331,500.0,0.00030268,60]
[390984117,1760266931470,502.22600425,0.00030268,60]
[390984118,1760266932269,500.0,0.00030268,60]
[390984119,1760266932497,500.61482875,0.00030268,60]
[390984120,1760266932763,500.0,0.00030268,60]
[390984121,1760266934613,500.0,0.00030268,60]
[390984122,1760266935032,500.0,0.00030268,60]
[390984123,1760266938379,502.44544589,0.00030268,60]
[390984124,1760266938458,500.0,0.00030268,60]
[390984125,1760266939001,500.89359788,0.00030268,60]
[390984126,1760266941673,500.0,0.00030268,60]
[390984127,1760266948698,500.0,0.00030268,60]
[390984128,1760266952060,500.0,0.00030268,60]
[390984129,1760266952294,500.0,0.00030268,60]
[390984130,1760266952540,500.0,0.00030268,60]
[390984131,1760266953865,500.0,0.00030268,60]
[390984132,1760266954266,493.0,0.00030268,60]
[390984133,1760266960701,500.0,0.00030268,60]
[390984134,1760266960940,500.0,0.00030268,60]
[390984135,1760266961214,575.61,0.00030268,60]
[390984136,1760266967282,500.0,0.00030268,60]
[390984137,1760266967537,500.0,0.00030268,60]
[390984138,1760266967833,564.38245615,0.00030268,60]
[390984139,1760266977598,500.0,0.00030268,60]
[390984140,1760266977765,500.0,0.00030268,60]
[390984141,1760266978000,328.43,0.00030268,60]
[390984142,1760266981560,500.0,0.00030268,60]
[390984143,1760266981850,500.0,0.00030268,60]
[390984144,1760266992932,500.0,0.00030268,60]
[390984145,1760266993167,500.0,0.00030268,60]
[390984146,1760266993397,500.0,0.00030268,60]
[390984147,1760266993535,500.0,0.00030268,60]
[390984148,1760266993657,500.0,0.00030268,60]
[390984149,1760266993787,500.0,0.00030268,60]
[390984150,1760266996996,500.0,0.00030268,60]
[390984152,1760267005147,500.0,0.00030268,60]
[390984153,1760267005383,500.0,0.00030268,60]
[390984154,1760267005414,527.80474146,0.00030268,60]
[390984155,1760267005604,500.0,0.00030268,60]
[390984156,1760267005853,153.62335116,0.00030268,60]
[390984157,1760267007522,500.0,0.00030268,60]
[390984158,1760267007808,500.0,0.00030268,60]
[390984159,1760267008223,500.0,0.00030268,60]
[390984160,1760267008554,500.0,0.00030268,60]
[390984161,1760267008784,500.0,0.00030268,60]
[390984162,1760267009340,505.22502429,0.00030268,60]
[390984163,1760267009818,500.0,0.00030268,60]
[390984164,1760267010081,500.0,0.00030268,60]
[390984165,1760267010309,500.0,0.00030268,60]
[390984166,1760267010557,500.0,0.00030268,60]
[390984167,1760267010602,500.0,0.00030268,60]
[390984168,1760267010835,445.02304004,0.00030268,60]
[390984169,1760267013002,452.80872985,0.00030268,60]
[390984170,1760267015693,500.0,0.00030268,60]
[390984171,1760267015934,500.0,0.00030268,60]
[390984172,1760267016176,500.0,0.00030268,60]
[390984173,1760267016408,500.0,0.00030268,60]
[390984174,1760267026371,501.93488945,0.00030268,60]
[390984175,1760267028470,500.0,0.00030268,60]
[390984176,1760267028730,500.0,0.00030268,60]
[390984177,1760267036530,500.0,0.00030268,60]
[390984178,1760267041591,500.0,0.00030268,60]
[390984179,1760267041852,500.0,0.00030268,60]
[390984180,1760267042087,500.0,0.00030268,60]
[390984181,1760267042319,500.0,0.00030268,60]
[390984182,1760267045550,500.0,0.00030268,60]
[390984183,1760267046042,500.0,0.00030268,60]
[390984184,1760267047738,500.0,0.00030268,60]
[390984185,1760267050417,638.31893546,0.00030268,60]
[390984186,1760267057160,500.0,0.00030268,60]
[390984187,1760267057391,500.0,0.00030268,60]
[390984188,1760267057615,500.0,0.00030268,60]
[390984189,1760267057846,500.0,0.00030268,60]
[390984190,1760267058144,500.0,0.00030268,60]
[390984191,1760267058378,500.0,0.00030268,60]
[390984192,1760267058620,500.0,0.00030268,60]
[390984193,1760267058842,500.0,0.00030268,60]
[390984194,1760267059069,500.0,0.00030268,60]
[390984195,1760267059629,500.0,0.00030268,60]
[390984196,1760267059858,367.03760979,0.00030268,60]
[390984197,1760267061765,500.0,0.00030268,60]
[390984198,1760267064219,500.0,0.00030268,60]
[390984199,1760267064306,500.0,0.00030268,60]
[390984200,1760267094104,502.29888454,0.00030268,60]
[390984201,1760267109168,1000.0,0.00021161,2]
[390984202,1760267117109,359.42255885,0.00021397,2]
[390984203,1760267119293,314.80954854,0.00021397,2]
[390984204,1760267128092,1059.73644863,0.00021799,2]
[390984705,1760267211499,579.54068097,0.00030268,60]
[390984706,1760267234125,-820.48754186,0.00021917,2]
[390984854,1760267262450,1032.0,0.00030268,60]
[390984855,1760267266978,500.0,0.00030268,60]
[390984856,1760267286182,500.0,0.00030268,60]
[390984857,1760267306950,400.42263561,0.00030268,60]
[390985003,1760267349860,500.0,0.00030268,60]
[390985179,1760267409678,2410.14,0.00021799,2]
[390985192,1760267432419,-345.04659234,0.00021917,2]
[390985193,1760267432474,-901.35642237,0.00021917,2]
[390985194,1760267432485,-500.0,0.00021917,2]
[390985195,1760267432530,-170.10944343,0.00021917,2]
[390985196,1760267432539,-238.68699911,0.00021917,2]
[390985197,1760267432548,-1200.0,0.00021943,2]
[390985198,1760267432557,-2615.5452629,0.00021944,2]
[390985222,1760267440671,-121.4547371,0.00021944,2]
[390985223,1760267440680,-339.0,0.00021962,2]
[390985224,1760267440689,-68.43577397,0.00021976,2]
[390985229,1760267443570,-231.56422603,0.00021976,2]
[390985230,1760267443580,-300.0,0.00021976,2]
[390985231,1760267443589,-1936.61577397,0.00021977,2]
[390985232,1760267443675,-800.38422603,0.00021977,2]
[390985233,1760267443685,-10037.46763321,0.0002199,2]
[390985619,1760267537503,500.0,0.00030268,60]
[390985626,1760267537759,500.0,0.00030268,60]
[390985633,1760267537982,500.0,0.00030268,60]
[390985634,1760267538221,500.0,0.00030268,60]
[390985635,1760267538491,500.0,0.00030268,60]
[390985636,1760267538762,500.0,0.00030268,60]
[390985637,1760267539091,500.0,0.00030268,60]
[390985638,1760267539333,500.0,0.00030268,60]
[390985639,1760267539553,500.0,0.00030268,60]
[390985640,1760267539801,461.74000001,0.00030268,60]
[390985664,1760267563264,500.0,0.00030268,60]
[390985667,1760267563677,500.0,0.00030268,60]
[390985668,1760267563906,500.0,0.00030268,60]
[390985669,1760267564133,548.51,0.00030268,60]
[390985678,1760267566946,500.0,0.00030268,60]
[390985682,1760267567441,587.48,0.00030268,60]
[390985689,1760267578805,500.0,0.00030268,60]
[390985690,1760267613604,500.0,0.00030268,60]
[390985691,1760267613883,331.48017915,0.00030268,60]
[390985692,1760267615606,644.76,0.00030268,60]
[390985693,1760267615860,644.76,0.00030268,60]
[390985694,1760267616112,644.76,0.00030268,60]
[390985696,1760267616381,644.76,0.00030268,60]
[390985707,1760267616608,644.76,0.00030268,60]
[390985717,1760267616867,644.76,0.00030268,60]
[390985718,1760267617121,644.76,0.00030268,60]
[390985719,1760267617399,644.76,0.00030268,60]
[390985720,1760267617672,644.76,0.00030268,60]
[390985721,1760267617920,644.76,0.00030268,60]
[390985722,1760267618158,644.76,0.00030268,60]
[390985724,1760267618755,644.76,0.00030268,60]
[390985725,1760267619006,644.76,0.00030268,60]
[390985726,1760267619242,644.76,0.00030268,60]
[390985728,1760267619480,644.76,0.00030268,60]
[390985729,1760267619726,644.76,0.00030268,60]
[390985730,1760267619953,644.76,0.00030268,60]
[390985731,1760267620368,644.76,0.00030268,60]
[390985732,1760267620710,644.76,0.00030268,60]
[390985733,1760267620934,644.76,0.00030268,60]
[390985740,1760267621197,644.76,0.00030268,60]
[390985741,1760267621437,644.76,0.00030268,60]
[390985744,1760267621675,644.76,0.00030268,60]
[390985745,1760267621970,644.94683336,0.00030268,60]
[390985749,1760267635875,350.29000757,0.00030268,60]
[390985762,1760267702824,1792.0,0.00021438,2]
[390985763,1760267707536,1792.0,0.00021451,2]
[390985765,1760267713952,1792.0,0.00021587,2]
[390985766,1760267721504,432.63699877,0.00021397,2]
[390985768,1760267755498,500.0,0.00021,2]
[390985774,1760267864309,500.0,0.00030268,60]
[390985775,1760267916816,500.0,0.00030268,60]
[390985776,1760267933267,249.76,0.00027397,120]
[390985778,1760267972945,500.0,0.00030268,60]
[390985779,1760267973187,194.50938659,0.00030268,60]
[390985780,1760267983445,1079.35,0.00030268,60]
[390985781,1760268039329,500.0,0.00030268,60]
[390985784,1760268068465,500.0,0.00030268,60]
[390985785,1760268103180,500.0,0.00030268,60]
[390985786,1760268107536,500.0,0.00030268,60]
[390985787,1760268107778,500.0,0.00030268,60]
[390985788,1760268108004,199.85000003,0.00030268,60]
[390985789,1760268110941,500.0,0.00030268,60]
[390985790,1760268186211,1463.82071191,0.00021785,2]
[390985791,1760268213725,500.0,0.00030269,60]
[390985796,1760268333949,249.16053511,0.00030269,60]
[390985797,1760268337299,500.0,0.00030269,60]
[390985798,1760268347626,261.74,0.00030269,60]
[390985799,1760268392869,500.0,0.00030269,60]
[390985800,1760268411434,500.0,0.00030269,60]
[390985802,1760268427143,5000.0,0.000218,2]
[390985803,1760268435106,2208.2283846,0.000218,2]
[390985804,1760268438200,500.0,0.00030269,60]
[390985805,1760268443729,666.0,0.00021067,2]
[390985806,1760268450088,-500.0,0.000219,5]
[390985807,1760268450109,-233.91325913,0.000219,2]
[390985808,1760268450129,-286.65161754,0.000219,2]
[390985809,1760268450609,161.96090349,0.000218,2]
[390985810,1760268450632,4838.03909651,0.000218,2]
[390985811,1760268460042,500.0,0.00030269,60]
[390985815,1760268468311,500.0,0.00030269,60]
[390985816,1760268473439,5000.0,0.000218,2]
[390985817,1760268478418,469.62725205,0.00030269,80]
[390985819,1760268480529,150.0,0.00017988,2]
[390985820,1760268480982,150.0,0.00018845,2]
[390985821,1760268481452,150.0,0.00019702,2]
[390985822,1760268481897,150.0,0.00020558,2]
[390985823,1760268482306,150.0,0.00021415,2]
[390985831,1760268489926,500.0,0.00030269,60]
[390985833,1760268496157,5000.0,0.000218,2]
[390985834,1760268510874,116590.2176792,0.00025,120]
[390985835,1760268511051,5000.01,0.0002,20]
[390985836,1760268511072,6190.28187839,0.0002,20]
[390985840,1760268549084,-7454.34838246,0.000219,2]
[390985841,1760268549108,-1792.0,0.00021945,2]
[390985842,1760268549130,-300.0,0.00021988,2]
[390985843,1760268549153,-703.41663785,0.00021989,2]
[390985844,1760268549174,-165.0,0.0002199,2]
[390985845,1760268549207,-165.0,0.0002199,2]
[390985846,1760268549260,-166.0,0.0002199,2]
[390985847,1760268549312,-165.0,0.0002199,2]
[390985848,1760268549364,-166.10239653,0.0002199,2]
[390985849,1760268549607,-205.50379909,0.0002199,2]
[390985850,1760268549631,-157.0,0.0002199,2]
[390985851,1760268549654,-155.38110599,0.0002199,2]
[390985852,1760268549678,-330.0,0.0002199,2]
[390985853,1760268549697,-330.0,0.0002199,2]
[390985854,1760268549716,-877.3784713,0.0002199,2]
[390985855,1760268549735,-1598.87984574,0.0002199,2]
[390985856,1760268549757,-2737.0,0.00022049,2]
[390985857,1760268549780,-626.0,0.00022065,2]
[390985858,1760268549802,-184.63647817,0.00022131,2]
[390985859,1760268549827,-10340.2551553,0.00022209,2]
[390985860,1760268549846,-442.3263507,0.00022214,2]
[390985861,1760268549867,-1340.1120818,0.00022221,2]
[390985862,1760268549888,-1226.7302919,0.00022221,2]
[390985863,1760268549911,-27845.2342499,0.00022221,2]
[390985864,1760268549933,-1357.38168318,0.00022231,2]
[390985865,1760268549955,-176.49,0.00022271,2]
[390985866,1760268549976,-3437.49,0.00022302,10]
[390985867,1760268549997,-2864.58,0.00022302,10]
[390985868,1760268550018,-2387.15,0.00022302,10]
[390985869,1760268550038,-1989.29,0.00022302,10]
[390985870,1760268550061,-313.14147658,0.00022311,2]
[390985871,1760268550081,-168.03187792,0.00022311,2]
[390985872,1760268550101,-173.71926328,0.00022311,2]
[390985873,1760268550123,-410.58202228,0.00022311,2]
[390985874,1760268550143,-325.48793828,0.00022311,2]
[390985875,1760268550165,-208.73655444,0.00022311,2]
[390985876,1760268550187,-4684.34000892,0.00022312,2]
[390985877,1760268553345,150.0,0.00017984,2]
[390985878,1760268553757,150.0,0.0001884,2]
[390985879,1760268554186,150.0,0.00019696,2]
[390985880,1760268554591,150.0,0.00020553,2]
[390985881,1760268554981,150.0,0.00021409,2]
[390985882,1760268567988,773.0,0.00021,2]
[390985883,1760268616137,378.23433046,0.00030269,60]
[390985884,1760268623091,150.0,0.00017981,2]
[390985885,1760268623491,150.0,0.00018838,2]
[390985886,1760268624041,150.0,0.00019694,2]
[390985887,1760268624284,150.0,0.0002055,2]
[390985899,1760268632618,-294.8842338,0.00022231,2]
[390985900,1760268632627,-229.23499395,0.00022265,2]
[390985901,1760268632636,-800.0,0.00022291,2]
[390985902,1760268632647,-194.61102952,0.00022299,2]
[390985903,1760268632656,-1657.74,0.00022302,10]
[390985904,1760268632666,-1381.45,0.00022302,10]
[390985905,1760268632675,-1200.0,0.00022311,2]
[390985906,1760268632687,-527.56247839,0.00022312,2]
[390985907,1760268632696,-6258.01726434,0.00022312,2]
[390985909,1760268638873,-1151.21,0.00022302,10]
[390985910,1760268638882,-149.91289125,0.00022312,2]
[390985911,1760268638893,-4247.00643768,0.00022312,2]
[390985912,1760268638904,-963.85330514,0.00022312,2]
[390985913,1760268638916,-1003.90200101,0.00022312,2]
[390985914,1760268639776,500.0,0.00030269,60]
[390985916,1760268640636,-1566.46333949,0.00022312,2]
[390985918,1760268643590,-535.9915868,0.00022312,2]
[390985923,1760268646624,-694.50938659,0.00022302,10]
[390985924,1760268648286,500.0,0.00030269,60]
[390985925,1760268649276,500.0,0.00030269,60]
[390985926,1760268649504,500.0,0.00030269,60]
[390985927,1760268649776,321.4,0.00030269,60]
[390985928,1760268659638,500.0,0.00030269,60]
[390985929,1760268667632,560.62632902,0.00030269,60]
[390986030,1760268718770,555.79,0.00030269,60]
[390986031,1760268722536,500.0,0.00030269,60]
[390986032,1760268730277,500.0,0.00030269,60]
[390986033,1760268730518,256.18,0.00030269,60]
[390986034,1760268730551,574.27,0.00030269,60]
[390986035,1760268732269,277.45112969,0.00030269,60]
[390986037,1760268737568,500.0,0.00030269,60]
[390986038,1760268738786,500.0,0.00030269,60]
[390986039,1760268739587,500.0,0.00030269,60]
[390986040,1760268739810,343.6,0.00030269,60]
[390986041,1760268741569,500.0,0.00030269,60]
[390986042,1760268741817,500.0,0.00030269,60]
[390986043,1760268742079,195.54,0.00030269,60]
[390986044,1760268745585,500.0,0.00030269,60]
[390986045,1760268745814,500.0,0.00030269,60]
[390986046,1760268746052,500.0,0.00030269,60]
[390986047,1760268746295,500.0,0.00030269,60]
[390986048,1760268746658,314.03,0.00030269,60]
[390986049,1760268749704,500.0,0.00030269,60]
[390986050,1760268749942,453.92,0.00030269,60]
[390986051,1760268758087,500.0,0.00030269,60]
[390986052,1760268758326,500.0,0.00030269,60]
[390986053,1760268758563,500.0,0.00030269,60]
[390986054,1760268758837,500.0,0.00030269,60]
[390986055,1760268759110,500.0,0.00030269,60]
[390986056,1760268759367,500.0,0.00030269,60]
[390986057,1760268759589,500.0,0.00030269,60]
[390986058,1760268759852,500.0,0.00030269,60]
[390986059,1760268760103,619.19,0.00030269,60]
[390986060,1760268767864,500.0,0.00030269,60]
[390986061,1760268773615,500.0,0.00030269,60]
[390986062,1760268773872,500.0,0.00030269,60]
[390986063,1760268774108,500.0,0.00030269,60]
[390986064,1760268774339,642.8,0.00030269,60]
[390986065,1760268775003,500.0,0.00030269,60]
[390986066,1760268775216,321.09,0.00030269,60]
[390986067,1760268788608,500.0,0.00030269,60]
[390986068,1760268797217,500.0,0.00030268,60]
[390986069,1760268799648,500.0,0.00030268,60]
[390986070,1760268805838,500.0,0.00030268,60]
[390986071,1760268806400,511.95,0.00030268,60]
[390986072,1760268809954,500.0,0.00030268,60]
[390986073,1760268810194,500.0,0.00030268,60]
[390986074,1760268810434,500.0,0.00030268,60]
[390986075,1760268810691,500.0,0.00030268,60]
[390986076,1760268810913,500.0,0.00030268,60]
[390986077,1760268811144,184.75,0.00030268,60]
[390986078,1760268812880,181.61,0.00030268,60]
[390986079,1760268822751,500.0,0.00030268,60]
[390986080,1760268823033,500.0,0.00030268,60]
[390986081,1760268823324,500.0,0.00030268,60]
[390986082,1760268823581,500.0,0.00030268,60]
[390986083,1760268823855,500.0,0.00030268,60]
[390986084,1760268824084,500.0,0.00030268,60]
[390986085,1760268824312,500.0,0.00030268,60]
[390986086,1760268824559,500.0,0.00030268,60]
[390986087,1760268824770,323.67941463,0.00030268,60]
[390986088,1760268825018,500.0,0.00030268,60]
[390986089,1760268825246,354.27,0.00030268,60]
[390986090,1760268830951,551.77,0.00030268,60]